bitfinex/quotes_BTCUSD_20250522
["timestamp","ask_amount","ask_price","bid_price","bid_amount"]
[1747880740502,0.87131598,110430.0,110420.0,0.85892322]
[1747880740735,0.86226097,110430.0,110420.0,0.85892322]
[1747880742250,0.86226097,110430.0,110420.0,0.86797955]
[1747880742451,0.87131598,110430.0,110420.0,0.87703579]
[1747880742926,0.87131598,110430.0,110420.0,0.86797946]
[1747880743381,0.87131598,110430.0,110420.0,0.87703562]
[1747880743553,0.85531589,110430.0,110420.0,0.8860917]
[1747880743766,0.85531589,110430.0,110420.0,0.87703562]
[1747880744330,0.86441042,110430.0,110420.0,1.32195288]
[1747880744520,0.86441042,110430.0,110420.0,1.33100888]
[1747880744723,0.87346593,110430.0,110420.0,1.31289672]
[1747880745065,0.87346593,110430.0,110420.0,1.30384048]
[1747880745271,0.86220105,110430.0,110420.0,0.84438237]
[1747880745661,0.86220105,110430.0,110420.0,0.0021488]
[1747880746103,1.293108,110430.0,110420.0,0.0021488]
[1747880746566,0.656028,110430.0,110420.0,0.0021488]
[1747880746876,1.02923734,110430.0,110420.0,0.0001488]
[1747880747080,1.03923734,110430.0,110420.0,0.0001488]
[1747880747209,1.02923734,110430.0,110420.0,0.0001488]
[1747880747632,1.03923734,110430.0,110420.0,0.0001488]
[1747880748069,1.03923734,110430.0,110420.0,0.0011488]
[1747880748291,1.02923734,110430.0,110420.0,0.0011488]
[1747880748449,1.10263067,110430.0,110420.0,0.0011488]
[1747880749008,0.95615462,110430.0,110420.0,0.0011488]
[1747880749435,0.86216105,110430.0,110420.0,0.0011488]
[1747880749603,0.22112105,110430.0,110420.0,0.0021488]
[1747880749816,0.8591453,110430.0,110420.0,0.0021488]
[1747880749992,0.87725607,110430.0,110420.0,0.0021488]
[1747880750191,0.87725607,110430.0,110420.0,0.0011488]
[1747880750424,0.87125607,110430.0,110420.0,0.0001488]
[1747880750632,0.86220097,110430.0,110420.0,0.0001488]
[1747880750832,0.86520097,110430.0,110420.0,0.0001488]
[1747880752050,0.86220097,110430.0,110420.0,0.0001488]
[1747880753257,0.21712097,110430.0,110420.0,0.0001488]
[1747880753458,0.86420097,110430.0,110420.0,0.0001488]
[1747880754828,1.12799163,110430.0,110420.0,0.0001488]
[1747880755461,0.86420097,110430.0,110420.0,0.0001488]
[1747880755848,1.27881445,110430.0,110420.0,0.0001488]
[1747880756049,1.56844351,110430.0,110420.0,0.0001488]
[1747880756253,1.26652072,110430.0,110420.0,0.0001488]
[1747880756458,1.25652072,110430.0,110420.0,0.0001488]
[1747880756651,1.26652072,110430.0,110420.0,0.0001488]
[1747880757076,1.193438,110430.0,110420.0,0.0001488]
[1747880757320,0.96823454,110430.0,110420.0,0.0001488]
[1747880757507,1.19344092,110430.0,110420.0,0.0001488]
[1747880758087,0.54636092,110430.0,110420.0,0.0001488]
[1747880758280,0.97693458,110430.0,110420.0,0.0001488]
[1747880758611,1.19348092,110430.0,110420.0,0.0001488]
[1747880761436,1.41002726,110430.0,110420.0,0.0001488]
[1747880761815,1.41002726,110430.0,110370.0,0.7704146]
[1747880761816,0.18119224,110380.0,110370.0,0.7704146]
[1747880762032,0.19025119,110380.0,110370.0,0.87365707]
[1747880762227,0.19025119,110380.0,110370.0,0.88271701]
[1747880762480,0.19931022,110380.0,110370.0,0.88271701]
[1747880762690,0.19931022,110380.0,110370.0,0.89177686]
[1747880762942,0.57236989,110410.0,110400.0,0.56287318]
[1747880762943,0.3912,110410.0,110400.0,0.56287318]
[1747880763160,0.47091889,110420.0,110410.0,0.01454085]
[1747880763357,0.66527159,110420.0,110410.0,0.5356983]
[1747880763492,0.67432718,110420.0,110410.0,0.53343439]
[1747880763701,0.67432709,110420.0,110410.0,0.54249096]
[1747880763903,0.86451034,110420.0,110410.0,0.10857442]
[1747880764109,0.85545467,110420.0,110410.0,0.1176314]
[1747880764383,0.18110644,110440.0,110420.0,0.00905616]
[1747880764641,0.01825697,110440.0,110430.0,0.53339649]
[1747880764841,0.66541697,110440.0,110430.0,0.53339666]
[1747880765052,0.00014866,110440.0,110430.0,1.11529793]
[1747880765699,0.00014866,110440.0,110430.0,1.37697793]
[1747880766119,0.00014866,110440.0,110430.0,0.94388525]
[1747880766339,0.00014866,110440.0,110430.0,0.89362525]
[1747880766610,0.00014866,110440.0,110430.0,1.32671793]
[1747880766831,0.00114866,110440.0,110430.0,1.32671793]
[1747880767070,0.00014866,110440.0,110430.0,1.32671793]
[1747880767548,0.00014866,110440.0,110430.0,1.32871793]
[1747880767972,0.00014866,110440.0,110430.0,1.28167093]
[1747880768179,0.00014866,110440.0,110430.0,1.13118495]
[1747880768605,0.00014866,110440.0,110430.0,1.13418495]
[1747880770951,0.00014866,110440.0,110430.0,0.68479227]
[1747880771155,0.00014866,110440.0,110430.0,0.90133861]
[1747880771752,0.00014866,110440.0,110430.0,1.11788495]
[1747880771955,0.00014866,110440.0,110430.0,1.13428495]
[1747880772193,0.00014866,110440.0,110430.0,1.13128495]
[1747880772396,0.00014866,110440.0,110430.0,1.15844895]
[1747880772739,0.00014866,110440.0,110430.0,1.16344895]
[1747880773212,0.00014866,110440.0,110430.0,1.15644895]
[1747880773414,0.00014866,110440.0,110430.0,0.89633861]
[1747880773594,0.00014866,110440.0,110430.0,0.90133861]
[1747880773798,0.00014866,110440.0,110430.0,1.12088495]
[1747880774201,0.00014866,110440.0,110430.0,1.13588495]
[1747880774639,0.00014866,110440.0,110430.0,1.13288495]
[1747880774991,0.00014866,110440.0,110430.0,1.12888495]
[1747880775345,0.00014866,110440.0,110430.0,1.12988495]
[1747880777973,0.00014866,110440.0,110430.0,2.22248495]
[1747880779318,0.00014866,110440.0,110430.0,2.62591395]
[1747880779648,0.00014866,110440.0,110430.0,2.44575995]
[1747880780590,0.00014866,110440.0,110430.0,2.42317995]
[1747880781282,0.00014866,110440.0,110430.0,2.32497995]
[1747880781488,0.01191795,110460.0,110450.0,1.01127155]
[1747880781689,0.29972175,110480.0,110470.0,0.55368951]
[1747880781900,0.38200437,110480.0,110470.0,0.63867118]
[1747880782161,0.55398219,110480.0,110470.0,0.62961904]
[1747880782336,0.55398219,110480.0,110470.0,0.64772308]
[1747880782762,0.55398219,110480.0,110470.0,0.6567749]
[1747880783324,0.5630336,110480.0,110470.0,0.66582663]
[1747880783769,0.29987123,110480.0,110470.0,0.67487828]
[1747880784638,0.29987123,110480.0,110470.0,0.68132662]
[1747880785054,0.13087123,110480.0,110470.0,0.66322324]
[1747880785279,0.31189947,110480.0,110470.0,0.63606738]
[1747880785480,0.00114874,110480.0,110470.0,0.62152653]
[1747880785685,0.00114874,110480.0,110470.0,0.86522856]
[1747880785885,0.27266874,110480.0,110470.0,0.87976941]
[1747880786479,0.27166874,110480.0,110470.0,0.87976941]
[1747880786923,0.00014874,110480.0,110470.0,1.30816941]
[1747880787412,0.00014874,110480.0,110470.0,1.99256941]
[1747880787616,0.00014874,110480.0,110470.0,1.77602307]
[1747880787834,0.00919941,110480.0,110470.0,1.75982307]
[1747880788042,0.01825016,110480.0,110470.0,1.75982307]
[1747880788246,0.00919941,110480.0,110470.0,1.97636941]
[1747880788418,0.00014874,110480.0,110470.0,1.97636941]
[1747880789064,0.00014874,110480.0,110470.0,1.29196941]
[1747880789265,0.00014874,110480.0,110470.0,1.57868941]
[1747880792887,0.00014874,110480.0,110470.0,1.29196941]
[1747880793967,0.00919957,110480.0,110470.0,1.29196949]
[1747880794167,0.00919957,110480.0,110470.0,1.30102114]
[1747880794413,0.00014874,110480.0,110470.0,1.30200114]
[1747880794987,0.00919957,110480.0,110470.0,1.30200114]
[1747880795191,0.00014874,110480.0,110470.0,1.30200114]
[1747880795386,0.00014874,110480.0,110470.0,1.31840114]
[1747880796176,0.00014874,110480.0,110470.0,1.26840114]
[1747880799137,0.00014874,110480.0,110470.0,1.95280114]
[1747880799753,0.00014874,110480.0,110470.0,1.7362548]
[1747880799979,0.00014874,110480.0,110470.0,1.95280114]
[1747880802228,0.00014874,110480.0,110470.0,1.7362548]
[1747880802384,0.00014874,110480.0,110470.0,1.95280114]
[1747880803395,0.00014874,110480.0,110470.0,1.93640114]
[1747880803942,0.00014874,110480.0,110470.0,2.20788114]
[1747880804146,0.00014874,110480.0,110470.0,1.93640114]
[1747880804955,0.00014874,110480.0,110470.0,1.25200114]
[1747880806661,0.00919941,110480.0,110470.0,1.25200114]
[1747880806818,0.00014874,110480.0,110470.0,1.25200114]
[1747880807026,0.00014874,110480.0,110470.0,1.26810114]
[1747880807653,0.00014874,110480.0,110470.0,1.87811414]
[1747880807864,0.1,110500.0,110490.0,0.61636263]
[1747880808086,0.10049571,110500.0,110490.0,1.84242973]
[1747880809245,0.10049571,110500.0,110490.0,1.84342973]
[1747880809443,0.10049571,110500.0,110490.0,1.84542973]
[1747880809909,0.10049571,110500.0,110490.0,1.85922973]
[1747880810115,0.10049571,110500.0,110490.0,1.86222973]
[1747880810520,0.10049571,110500.0,110490.0,1.84542973]
[1747880810916,0.10049571,110500.0,110490.0,1.84842973]
[1747880811504,0.10049571,110500.0,110490.0,2.11986973]
[1747880811710,0.01,110530.0,110520.0,0.20810613]
[1747880811914,0.01014865,110530.0,110520.0,1.07523238]
[1747880812116,0.02644865,110530.0,110520.0,1.07523238]
[1747880812358,0.01014865,110530.0,110520.0,1.07523238]
[1747880812527,0.75304395,110550.0,110540.0,0.57870933]
[1747880812528,0.251,110550.0,110540.0,0.57870933]
[1747880812812,0.19570725,110550.0,110540.0,1.75442258]
[1747880813030,0.19570725,110550.0,110540.0,1.50627658]
[1747880813237,0.13531147,110550.0,110540.0,1.38377622]
[1747880813434,0.13531147,110550.0,110540.0,1.08973558]
[1747880813665,0.13531147,110550.0,110540.0,1.13766719]
[1747880813824,0.13531147,110550.0,110540.0,1.13866719]
[1747880814452,0.13531147,110550.0,110540.0,1.11533622]
[1747880814681,0.31622508,110550.0,110540.0,0.85809715]
[1747880814908,0.13531147,110550.0,110540.0,0.87618924]
[1747880815115,0.13531147,110550.0,110540.0,1.09273558]
[1747880816157,0.13531147,110550.0,110540.0,0.87618924]
[1747880816350,0.34157002,110550.0,110540.0,0.65059698]
[1747880816554,0.35061504,110550.0,110540.0,0.8761894]
[1747880816766,0.13531147,110550.0,110540.0,0.87618924]
[1747880817173,0.13531147,110550.0,110540.0,1.09273558]
[1747880817772,0.1138019,110550.0,110540.0,1.09273558]
[1747880818179,0.05367054,110550.0,110540.0,1.38073558]
[1747880818377,0.05095755,110550.0,110540.0,2.04206258]
[1747880818776,0.05095755,110550.0,110540.0,1.94667058]
[1747880818984,0.05095755,110550.0,110540.0,1.55784458]
[1747880819187,0.05095755,110550.0,110540.0,1.53853958]
[1747880819395,0.36348529,110580.0,110570.0,0.22255287]
[1747880819603,0.11761672,110580.0,110570.0,0.94133278]
[1747880819807,0.38897656,110580.0,110570.0,0.94133278]
[1747880820001,0.11761656,110580.0,110570.0,0.94133278]
[1747880820211,0.13570227,110580.0,110570.0,0.94133278]
[1747880820417,0.12665929,110580.0,110570.0,0.94133278]
[1747880820690,0.11070218,110580.0,110570.0,0.94133278]
[1747880820863,0.30061042,110580.0,110570.0,0.93228931]
[1747880821066,0.29156777,110580.0,110570.0,0.93228931]
[1747880821290,0.28252504,110580.0,110570.0,0.51677442]
[1747880821595,0.27348215,110580.0,110570.0,0.41501315]
[1747880821722,0.92116215,110580.0,110570.0,0.41501315]
[1747880821926,0.92116215,110580.0,110570.0,0.4082]
[1747880822135,0.92116215,110580.0,110570.0,0.50954797]
[1747880822136,0.00014862,110580.0,110570.0,0.50954797]
[1747880822356,0.00014862,110580.0,110570.0,0.52408931]
[1747880822357,0.04257706,110580.0,110570.0,0.52408931]
[1747880822561,0.22344159,110580.0,110570.0,0.29849926]
[1747880822757,0.22344224,110580.0,110570.0,0.10857442]
[1747880823081,0.04257771,110580.0,110570.0,0.31658668]
[1747880823286,0.22344224,110580.0,110570.0,0.29849934]
[1747880826007,0.22403109,110560.0,110550.0,0.61494718]
[1747880826209,0.49535109,110560.0,110550.0,0.4576201]
[1747880826415,0.49535109,110560.0,110550.0,0.65662481]
[1747880826629,0.48630672,110560.0,110550.0,0.44857442]
[1747880826836,0.31445384,110560.0,110550.0,0.65662424]
[1747880827032,0.48630672,110560.0,110550.0,0.44857442]
[1747880827234,0.48630672,110560.0,110550.0,0.09403357]
[1747880827800,0.48630672,110560.0,110520.0,0.4082]
[1747880827801,0.0162,110530.0,110520.0,0.4082]
[1747880827996,0.28748,110530.0,110520.0,0.51868604]
[1747880828223,0.38532494,110550.0,110540.0,0.19902256]
[1747880828423,0.85560949,110550.0,110540.0,0.29305613]
[1747880828746,0.87130965,110550.0,110540.0,0.29305629]
[1747880828920,0.87130965,110550.0,110540.0,0.28400996]
[1747880829121,0.86226455,110550.0,110540.0,0.28400996]
[1747880829325,0.86226455,110550.0,110540.0,0.43403357]
[1747880829713,0.86226455,110550.0,110540.0,0.44308006]
[1747880830513,0.21470455,110550.0,110540.0,0.44308006]
[1747880830729,0.87139023,110550.0,110540.0,0.64210278]
[1747880831268,0.87139023,110550.0,110540.0,0.44308006]
[1747880831870,0.87139023,110550.0,110540.0,0.43403357]
[1747880832067,0.87139023,110550.0,110540.0,0.65057991]
[1747880832278,0.87139023,110550.0,110540.0,0.6596264]
[1747880832885,0.87139023,110550.0,110540.0,0.65057991]
[1747880833632,0.87139023,110550.0,110540.0,0.43403357]
[1747880834989,0.59102406,110550.0,110540.0,0.84055622]
[1747880835202,0.88043517,110550.0,110540.0,0.65057991]
[1747880835404,0.88043517,110550.0,110540.0,0.43403357]
[1747880835611,0.8888606,110550.0,110540.0,0.44308006]
[1747880835891,0.8888606,110550.0,110540.0,0.43403357]
[1747880836092,0.8798155,110550.0,110540.0,0.43403357]
[1747880837319,0.87077015,110550.0,110540.0,0.43403357]
[1747880837937,0.87077015,110550.0,110540.0,0.84223357]
[1747880838153,1.08731649,110550.0,110540.0,0.4082]
[1747880838353,0.43967649,110550.0,110540.0,0.4082]
[1747880838558,1.37598555,110550.0,110540.0,0.4082]
[1747880839177,1.15943921,110550.0,110540.0,0.4082]
[1747880839659,0.21475841,110520.0,110510.0,0.42274085]
[1747880839788,0.86143841,110520.0,110510.0,0.10872307]
[1747880840241,0.87048654,110520.0,110510.0,0.10872307]
[1747880840414,0.87048654,110520.0,110510.0,0.44872307]
[1747880840590,0.85478654,110520.0,110510.0,0.44872307]
[1747880840787,0.86143841,110520.0,110510.0,0.44872307]
[1747880841212,0.85478654,110520.0,110510.0,0.44872307]
[1747880841414,0.84573841,110520.0,110510.0,0.44872307]
[1747880841633,0.85478654,110520.0,110510.0,0.44872307]
[1747880841841,0.87048654,110520.0,110510.0,0.44872307]
[1747880842249,0.85478654,110520.0,110510.0,0.44872307]
[1747880842608,0.87048654,110520.0,110510.0,0.44872307]
[1747880843228,0.86143841,110520.0,110510.0,0.44872307]
[1747880843409,0.87953394,110520.0,110510.0,0.44872307]
[1747880843816,0.87048646,110520.0,110510.0,0.44872307]
[1747880844916,0.86143874,110520.0,110510.0,0.44872307]
[1747880845385,0.58107036,110520.0,110510.0,0.44872307]
[1747880845583,0.88862157,110520.0,110510.0,0.44872307]
[1747880846048,0.87957418,110520.0,110510.0,0.44872307]
[1747880846532,0.23285418,110520.0,110510.0,0.44872307]
[1747880846846,0.87056654,110520.0,110510.0,0.44872307]
[1747880847179,0.86151841,110520.0,110510.0,0.44872307]
[1747880847381,0.85486654,110520.0,110510.0,0.44872307]
[1747880848723,0.84581841,110520.0,110510.0,0.44872307]
[1747880848936,0.85490556,110520.0,110510.0,0.8462485]
[1747880849138,0.85490556,110520.0,110510.0,0.67431836]
[1747880849526,0.85490556,110520.0,110510.0,0.68336706]
[1747880849737,0.86395353,110520.0,110510.0,0.67431836]
[1747880849946,0.86395353,110520.0,110510.0,0.68336715]
[1747880850363,0.85490556,110520.0,110510.0,0.53339494]
[1747880850522,0.86395353,110520.0,110510.0,0.52434624]
[1747880851009,0.19001915,110530.0,110510.0,0.55894307]
[1747880851221,0.49567295,110530.0,110520.0,0.10857442]
[1747880851392,0.48662621,110530.0,110520.0,0.10857442]
[1747880851622,0.48662621,110530.0,110520.0,0.09403357]
[1747880851938,0.21526621,110530.0,110520.0,0.09403357]
[1747880852134,0.25399633,110550.0,110520.0,0.50608348]
[1747880852135,0.19601361,110550.0,110520.0,0.50608348]
[1747880852353,0.58954406,110550.0,110540.0,0.21654634]
[1747880852550,0.86328645,110550.0,110540.0,0.31057991]
[1747880852955,0.85424135,110550.0,110540.0,0.31057991]
[1747880853163,0.861396,110550.0,110540.0,0.31057991]
[1747880853803,0.87044135,110550.0,110540.0,0.31057991]
[1747880854003,0.85235041,110550.0,110540.0,0.49150989]
[1747880854253,0.85424094,110550.0,110540.0,0.31057991]
[1747880854405,0.845196,110550.0,110540.0,0.31057991]
[1747880854602,0.0084368,110550.0,110540.0,0.85509715]
[1747880854826,0.6468,110550.0,110540.0,1.28138924]
[1747880855047,0.27236,110550.0,110540.0,0.87318924]
[1747880855288,0.27236,110550.0,110540.0,1.28138924]
[1747880855449,0.001,110550.0,110540.0,0.87318924]
[1747880855652,0.12984101,110600.0,110580.0,0.01808538]
[1747880855871,0.52100219,110600.0,110590.0,0.40643691]
[1747880856037,0.11580453,110600.0,110590.0,0.43356298]
[1747880856421,0.11580453,110600.0,110590.0,0.44810383]
[1747880856660,0.11580453,110600.0,110590.0,0.78810383]
[1747880856861,0.11595321,110600.0,110590.0,0.78810383]
[1747880857710,0.10514868,110600.0,110590.0,0.78810383]
[1747880858519,0.30506261,110600.0,110590.0,0.37727976]
[1747880858725,0.29602143,110600.0,110590.0,0.78371643]
[1747880858980,0.12323062,110600.0,110590.0,0.80180067]
[1747880859221,0.10514868,110600.0,110590.0,0.8018005]
[1747880859428,0.10514868,110600.0,110590.0,0.8038005]
[1747880859806,0.10514868,110600.0,110590.0,0.8058005]
[1747880860000,0.10514868,110600.0,110590.0,0.89983407]
[1747880860211,0.10514868,110600.0,110590.0,0.54529322]
[1747880860608,0.10514868,110600.0,110590.0,0.54329322]
[1747880861404,0.10514868,110600.0,110590.0,0.54129322]
[1747880862033,0.10514868,110600.0,110590.0,0.54429322]
[1747880862249,0.11418953,110600.0,110590.0,0.56877701]
[1747880862816,0.12323054,110600.0,110590.0,0.56877701]
[1747880863016,0.12323054,110600.0,110590.0,0.33721936]
[1747880863017,0.2859805,110600.0,110590.0,0.33721936]
[1747880863222,0.39314582,110600.0,110590.0,0.10697651]
[1747880863473,0.39314582,110600.0,110590.0,0.006]
[1747880864165,1.27865216,110600.0,110590.0,0.006]
[1747880864326,1.06210582,110600.0,110590.0,0.003]
[1747880864845,1.06210582,110600.0,110590.0,0.005]
[1747880865262,1.06210582,110600.0,110590.0,0.003]
[1747880865649,0.01808718,110570.0,110560.0,0.77361792]
[1747880865844,0.69609114,110570.0,110560.0,0.86551609]
[1747880866146,0.86792806,110570.0,110560.0,0.84743099]
[1747880866348,0.86792806,110570.0,110560.0,0.86551997]
[1747880866732,0.86792806,110570.0,110560.0,0.87456425]
[1747880866928,0.18087764,110580.0,110560.0,0.87456425]
[1747880867135,0.85885008,110590.0,110580.0,0.18990759]
[1747880867384,0.88449257,110590.0,110580.0,0.09403357]
[1747880867896,0.20801202,110570.0,110560.0,0.34690897]
[1747880868053,0.19744817,110590.0,110570.0,0.00904396]
[1747880868255,0.12323136,110600.0,110590.0,0.19893289]
[1747880868462,0.98206419,110600.0,110590.0,0.29296646]
[1747880868672,0.97302318,110600.0,110590.0,0.3020087]
[1747880868877,0.97302318,110600.0,110590.0,0.10307597]
[1747880869080,0.97302318,110600.0,110590.0,0.11211829]
[1747880869287,0.97302318,110600.0,110590.0,0.3020087]
[1747880869494,0.97302318,110600.0,110590.0,0.31105086]
[1747880870015,0.97302318,110600.0,110590.0,0.32009294]
[1747880870216,0.97302318,110600.0,110590.0,0.31105086]
[1747880871133,0.30406318,110600.0,110590.0,0.31105086]
[1747880871431,0.97302318,110600.0,110590.0,0.31105086]
[1747880871639,0.97402318,110600.0,110590.0,0.32009294]
[1747880871806,0.97402318,110600.0,110590.0,0.31105086]
[1747880872005,0.97402318,110600.0,110590.0,0.09403357]
[1747880872221,0.98962318,110600.0,110590.0,0.11211813]
[1747880872638,0.18084817,110590.0,110570.0,0.18088088]
[1747880872852,0.19644817,110590.0,110580.0,0.09403357]
[1747880873298,0.86540817,110590.0,110580.0,0.09403357]
[1747880873501,0.86540817,110590.0,110560.0,0.21494014]
[1747880873502,0.01808702,110570.0,110560.0,0.21494014]
[1747880873710,0.28932702,110570.0,110560.0,0.31801808]
[1747880873915,0.29837073,110570.0,110560.0,0.29992926]
[1747880874121,0.4702079,110570.0,110560.0,0.63088465]
[1747880874381,0.47925178,110570.0,110560.0,0.10094254]
[1747880874576,0.47020839,110570.0,110560.0,0.10094254]
[1747880874924,0.47925235,110570.0,110560.0,0.10998732]
[1747880875343,0.47020839,110570.0,110560.0,0.44998732]
[1747880875599,0.47020839,110570.0,110560.0,0.45298732]
[1747880875926,0.47020839,110570.0,110560.0,0.45598732]
[1747880876124,0.47020839,110570.0,110560.0,0.44094254]
[1747880876455,0.4857088,110570.0,110560.0,0.10294254]
[1747880877074,0.4857088,110570.0,110560.0,0.002]
[1747880877075,0.5393896,110570.0,110560.0,0.002]
[1747880877274,0.4857088,110570.0,110560.0,0.002]
[1747880877679,0.4857088,110570.0,110560.0,0.004]
[1747880878040,0.2144688,110570.0,110560.0,0.004]
[1747880878247,0.87697243,110570.0,110560.0,0.09403357]
[1747880878454,0.87797243,110570.0,110560.0,0.10143685]
[1747880878723,0.8689288,110570.0,110560.0,0.09403357]
[1747880879009,0.8844288,110570.0,110560.0,0.09403357]
[1747880879167,0.18091361,110550.0,110540.0,0.78395094]
[1747880879385,0.47024398,110550.0,110540.0,0.86893834]
[1747880879589,0.46119871,110550.0,110540.0,0.87798442]
[1747880879788,0.47024389,110550.0,110540.0,0.86893834]
[1747880879966,0.47928916,110550.0,110540.0,0.87798451]
[1747880880183,0.47928916,110550.0,110540.0,0.88703059]
[1747880880454,0.47928932,110550.0,110540.0,0.68618406]
[1747880880608,0.48833483,110550.0,110540.0,0.69523047]
[1747880880809,0.48833532,110550.0,110540.0,0.68618406]
[1747880881019,0.47024471,110550.0,110540.0,0.4412551]
[1747880881403,0.47024471,110550.0,110540.0,0.45030159]
[1747880882086,0.18091114,110560.0,110550.0,0.02358644]
[1747880882221,0.86799979,110560.0,110550.0,0.33416635]
[1747880882417,0.88608926,110560.0,110550.0,0.10857442]
[1747880882658,0.87704506,110560.0,110550.0,0.09403357]
[1747880882802,0.86800061,110560.0,110550.0,0.09403357]
[1747880883686,0.858956,110560.0,110550.0,0.09403357]
[1747880884064,0.874156,110560.0,110550.0,0.09403357]
[1747880884272,0.205156,110560.0,110550.0,0.09403357]
[1747880884447,0.875196,110560.0,110550.0,0.09403357]
[1747880884674,0.96922957,110560.0,110550.0,0.09403357]
[1747880884857,0.19900455,110550.0,110540.0,0.00722153]
[1747880885058,0.19900455,110550.0,110540.0,0.09403357]
[1747880885259,0.66904,110550.0,110540.0,0.53545055]
[1747880885630,0.66381,110550.0,110540.0,0.53318899]
[1747880885834,0.67285494,110550.0,110540.0,0.53318907]
[1747880885971,0.66381,110550.0,110540.0,0.53318907]
[1747880886380,0.67285502,110550.0,110540.0,0.53318907]
[1747880886911,0.67285502,110550.0,110540.0,0.55396536]
[1747880888323,0.67892502,110550.0,110540.0,0.55396536]
[1747880888685,0.18992492,110570.0,110550.0,0.19900472]
[1747880888899,0.66988,110560.0,110550.0,0.21354491]
[1747880889066,0.68796857,110560.0,110550.0,0.94137033]
[1747880889222,0.68796857,110560.0,110550.0,0.93232515]
[1747880889420,0.6970131,110560.0,110550.0,0.95041552]
[1747880889848,0.68796857,110560.0,110550.0,0.95041552]
[1747880890065,0.6970131,110560.0,110550.0,0.95041552]
[1747880890270,0.68796857,110560.0,110550.0,0.95041552]
[1747880890473,0.60674593,110570.0,110560.0,0.20803101]
[1747880890650,0.87802593,110570.0,110560.0,0.50956647]
[1747880890866,0.87902593,110570.0,110560.0,0.50956647]
[1747880891249,0.87802593,110570.0,110560.0,0.51861092]
[1747880891672,0.88706989,110570.0,110560.0,0.51861108]
[1747880891849,0.88706989,110570.0,110560.0,0.92681108]
[1747880892247,0.87802593,110570.0,110560.0,0.93585553]
[1747880892476,0.88806981,110570.0,110560.0,0.92681108]
[1747880892967,0.88806981,110570.0,110560.0,0.93585553]
[1747880893574,0.88806981,110570.0,110560.0,0.95039638]
[1747880893575,0.00113441,110570.0,110560.0,0.95039638]
[1747880893761,0.00113441,110570.0,110560.0,0.90624066]
[1747880893966,0.27128,110580.0,110570.0,0.22301202]
[1747880894213,0.66988,110590.0,110580.0,0.56253406]
[1747880894402,0.3986,110590.0,110580.0,0.87311397]
[1747880894604,0.66988,110590.0,110580.0,0.88811397]
[1747880895040,0.11404093,110600.0,110590.0,0.56251525]
[1747880895260,0.77488,110600.0,110590.0,0.87309516]
[1747880895523,0.5036,110600.0,110590.0,0.87309516]
[1747880895727,0.11404093,110600.0,110590.0,0.87309516]
[1747880895933,0.38532093,110600.0,110590.0,0.87309516]
[1747880896706,0.56615283,110600.0,110590.0,0.43403357]
[1747880896915,0.59029475,110600.0,110590.0,0.34]
[1747880897123,0.21403281,110590.0,110580.0,0.342]
[1747880897333,0.22307497,110590.0,110580.0,0.10507679]
[1747880897560,0.22307497,110590.0,110580.0,0.09603357]
[1747880897773,0.20797497,110590.0,110580.0,0.11211993]
[1747880897979,0.19893281,110590.0,110580.0,0.09403357]
[1747880898602,0.21403281,110590.0,110580.0,0.09403357]
[1747880898816,0.19895015,110580.0,110570.0,0.53896855]
[1747880899039,0.4792328,110580.0,110570.0,0.86763564]
[1747880899650,0.47018991,110580.0,110570.0,0.85859217]
[1747880899863,0.47018991,110580.0,110570.0,0.86763564]
[1747880900073,0.4792328,110580.0,110570.0,0.86963572]
[1747880900291,0.4792328,110580.0,110570.0,0.87867919]
[1747880900566,0.18084817,110590.0,110580.0,0.19895073]
[1747880900744,0.48825672,110590.0,110580.0,0.5185737]
[1747880900950,0.49729839,110590.0,110580.0,0.91773072]
[1747880901156,0.48825672,110590.0,110580.0,0.51127679]
[1747880901362,0.20797432,110590.0,110580.0,0.71022735]
[1747880901556,0.87773383,110590.0,110580.0,0.93581642]
[1747880901773,0.88677607,110590.0,110580.0,0.9358165]
[1747880901994,0.88677607,110590.0,110580.0,0.9368165]
[1747880902168,0.88677607,110590.0,110580.0,0.92777369]
[1747880902340,0.21701607,110590.0,110580.0,0.92777369]
[1747880902697,0.88677607,110590.0,110580.0,0.9368165]
[1747880903211,0.87773432,110590.0,110580.0,0.50323357]
[1747880903347,0.86869249,110590.0,110580.0,0.51227679]
[1747880903527,0.86869249,110590.0,110580.0,0.50323357]
[1747880903734,0.87625041,110590.0,110580.0,0.4092]
[1747880904554,0.87625041,110590.0,110580.0,0.001]
[1747880905155,0.60501041,110590.0,110580.0,0.001]
[1747880905522,0.87625041,110590.0,110580.0,0.001]
[1747880906674,0.86720817,110590.0,110580.0,0.001]
[1747880909411,0.18084817,110590.0,110580.0,0.001]
[1747880909611,0.85060817,110590.0,110580.0,0.001]
[1747880910917,0.86670817,110590.0,110580.0,0.001]
[1747880913421,1.08325451,110590.0,110580.0,0.001]
[1747880913570,0.86670817,110590.0,110580.0,0.001]
[1747880913773,0.18091361,110550.0,110540.0,0.00744863]
[1747880913996,0.86591361,110550.0,110540.0,0.00013441]
[1747880914401,1.25957624,110550.0,110540.0,0.00013441]
[1747880914630,1.48612258,110550.0,110540.0,0.00013441]
[1747880914753,1.81612258,110550.0,110540.0,0.00013441]
[1747880914975,0.21415841,110520.0,110510.0,0.18]
[1747880915183,1.10050475,110520.0,110510.0,0.18]
[1747880915550,1.43108466,110520.0,110510.0,0.18]
[1747880915775,1.28995543,110520.0,110510.0,0.18]
[1747880915960,0.21415841,110520.0,110510.0,0.18]
[1747880916164,0.88287841,110520.0,110510.0,0.18]
[1747880916491,0.30819198,110520.0,110510.0,0.18]
[1747880916727,1.62224463,110520.0,110510.0,0.16008983]
[1747880916966,0.19913048,110480.0,110470.0,0.00098]
[1747880917196,1.6346875,110480.0,110470.0,0.00098]
[1747880917423,1.34272405,110480.0,110470.0,0.00098]
[1747880917651,1.73603207,110480.0,110470.0,0.00098]
[1747880917883,1.8149376,110480.0,110470.0,0.00098]
[1747880918098,1.80311709,110480.0,110470.0,0.00098]
[1747880918301,1.80311709,110480.0,110470.0,0.00147571]
[1747880918302,0.81347762,110480.0,110470.0,0.00147571]
[1747880918503,1.47235762,110480.0,110470.0,0.00147571]
[1747880918847,1.13892609,110480.0,110470.0,0.00147571]
[1747880919098,1.79780609,110480.0,110470.0,0.00147571]
[1747880919738,0.59181048,110480.0,110470.0,0.00147571]
[1747880920093,1.24881048,110480.0,110470.0,0.00147571]
[1747880920293,0.58981048,110480.0,110470.0,0.00147571]
[1747880920486,1.24981048,110480.0,110470.0,0.00147571]
[1747880921119,0.59081048,110480.0,110470.0,0.00147571]
[1747880921565,1.24989048,110480.0,110470.0,0.00147571]
[1747880921949,0.39168,110480.0,110470.0,0.33435069]
[1747880922158,0.40978159,110480.0,110470.0,0.63536579]
[1747880922361,0.69928383,110480.0,110470.0,0.96631431]
[1747880922698,0.69928383,110480.0,110470.0,0.68340251]
[1747880922836,0.69928449,110480.0,110470.0,0.66529896]
[1747880923032,0.69928449,110480.0,110470.0,0.67435069]
[1747880923245,0.68018159,110480.0,110470.0,0.68340234]
[1747880923453,0.66208,110480.0,110470.0,0.97536579]